bitfinex-derivatives/quotes_ETHF0:USTF0_20250217
["timestamp","ask_amount","ask_price","bid_price","bid_amount"]
[1739831099333,3.03955,2760.4,2760.2,0.57957]
[1739831099535,3.03955,2760.4,2759.9,3.51255108]
[1739831099734,0.57956,2760.3,2760.2,0.57956]
[1739831100730,0.57962,2760.0,2759.9,3.2078]
[1739831100931,0.57962,2760.0,2759.8,0.57966]
[1739831101130,0.5481,2759.9,2759.7,0.00362326]
[1739831101633,0.5481,2759.9,2759.8,0.57967]
[1739831102727,2.46,2760.0,2759.9,0.57964]
[1739831103948,2.46,2760.1,2760.0,0.57962]
[1739831122962,3.0396,2760.1,2760.0,0.57962]
[1739831123563,0.57963,2760.0,2759.7,1.52893437]
[1739831123764,0.57963,2760.0,2759.9,0.57964]
[1739831124468,2.46,2760.1,2759.7,1.83164631]
[1739831124660,0.57963,2760.0,2759.9,0.57963]
[1739831124860,2.46,2760.1,2759.7,1.83164631]
[1739831125166,0.57963,2760.0,2759.9,0.57963]
[1739831127071,3.03961,2760.1,2760.0,0.57962]
[1739831127271,2.46,2760.1,2760.0,0.57962]
[1739831128972,3.0396,2760.1,2760.0,0.57962]
[1739831129872,2.46,2760.1,2760.0,0.57962]
[1739831132373,0.5744,2760.3,2760.2,0.57958]
[1739831132576,3.61196,2760.3,2760.2,0.57958]
[1739831132872,3.0324,2760.3,2760.2,0.57958]
[1739831134074,0.5744,2760.3,2760.2,0.57958]
[1739831135371,3.0067,2760.5,2760.4,0.57954]
[1739831144177,0.5497,2760.5,2760.4,0.57954]
[1739831144377,0.5616,2760.6,2760.5,0.57952]
[1739831147985,0.5616,2760.6,2760.5,2.10483111]
[1739831153988,0.00543488,2761.1,2760.5,1.52531111]
[1739831154193,0.58483488,2761.1,2761.0,0.57941]
[1739831154493,3.04083488,2761.1,2761.0,0.57941]
[1739831156585,2.46143488,2761.1,2761.0,0.57941]
[1739831156789,0.00543488,2761.1,2761.0,0.57941]
[1739831166596,0.5455,2761.5,2761.4,0.57933]
[1739831166793,0.5455,2761.5,2761.4,5.31244111]
[1739831167990,0.5455,2761.5,2761.4,5.61442182]
[1739831168799,0.00543488,2761.7,2761.4,5.03509182]
[1739831169000,0.00543488,2761.7,2761.6,2.10460111]
[1739831174804,9.98374599,2761.7,2760.6,3.2078]
[1739831174993,9.98374599,2761.7,2760.5,1.52531111]
[1739831174994,0.57946,2760.8,2760.5,1.52531111]
[1739831175303,1.0847,2760.7,2760.5,2.10483111]
[1739831175698,1.0847,2760.7,2760.5,1.52531111]
[1739831176099,1.0847,2760.7,2760.5,2.10482111]
[1739831176406,1.0847,2760.7,2760.6,0.5795]
[1739831178005,1.0847,2760.7,2760.4,0.29246768]
[1739831178006,1.611,2760.7,2760.4,0.29246768]
[1739831178210,1.611,2760.7,2760.5,0.57951]
[1739831178501,1.611,2760.7,2760.4,0.57953]
[1739831178806,1.611,2760.7,2760.3,6.6182108]
[1739831179106,1.611,2760.7,2760.5,0.57951]
[1739831179909,1.611,2760.7,2760.6,0.5795]
[1739831184316,1.611,2760.7,2760.3,6.6182108]
[1739831184507,1.611,2760.7,2760.5,0.57951]
[1739831184709,1.611,2760.7,2760.3,6.6182108]
[1739831185210,1.611,2760.7,2760.5,0.5795]
[1739831185411,1.611,2760.7,2760.3,6.6182108]
[1739831185703,1.611,2760.7,2760.6,0.5795]
[1739831185910,1.611,2760.7,2760.5,0.57951]
[1739831186110,2.19048,2760.7,2760.5,0.57951]
[1739831187002,1.611,2760.7,2760.5,0.57951]
[1739831187402,1.611,2760.7,2760.3,3.21142326]
[1739831187403,1.611,2760.7,2760.6,0.5795]
[1739831188702,1.611,2760.7,2760.3,3.21142326]
[1739831188904,2.19048,2760.7,2760.6,0.5795]
[1739831189914,1.611,2760.7,2760.6,0.5795]
[1739831190508,2.19048,2760.7,2760.4,3.2078]
[1739831191216,2.19048,2760.7,2760.6,0.5795]
[1739831191819,1.611,2760.7,2760.6,0.5795]
[1739831192011,2.19049,2760.7,2760.5,0.5795]
[1739831192318,2.19049,2760.7,2760.6,0.5795]
[1739831194116,1.611,2760.7,2760.6,0.5795]
[1739831194411,2.19048,2760.7,2760.6,0.5795]
[1739831194613,2.19048,2760.7,2760.4,3.2078]
[1739831194815,2.19048,2760.7,2760.5,0.5795]
[1739831195413,2.19048,2760.7,2760.6,0.5795]
[1739831195613,1.611,2760.7,2760.4,3.2078]
[1739831195813,0.57954,2760.4,2760.3,0.00362326]
[1739831196015,3.03154,2760.4,2760.3,0.00362326]
[1739831200416,4.55685029,2760.4,2760.3,0.00362326]
[1739831200615,0.57963,2760.0,2759.8,2.65607029]
[1739831200816,0.5373,2759.9,2759.8,2.65607029]
[1739831201120,0.5373,2759.9,2759.8,2.10497029]
[1739831201415,1.0811,2759.9,2759.8,2.10497029]
[1739831204324,1.0811,2759.9,2759.8,1.52531029]
[1739831204517,1.0811,2759.9,2759.8,2.10497029]
[1739831206819,0.00543488,2760.1,2760.0,0.57962]
[1739831207025,0.00543488,2760.1,2760.0,2.10493029]
[1739831207420,0.00543488,2760.1,2760.0,3.22713029]
[1739831209020,0.00543488,2760.1,2760.0,4.75244058]
[1739831209224,0.00543488,2760.1,2760.0,3.22713029]
[1739831209426,0.00543488,2760.1,2760.0,4.75244058]
[1739831210021,0.00543488,2760.1,2760.0,3.22713029]
[1739831210229,0.00543488,2760.1,2760.0,4.75244058]
[1739831210628,0.00543488,2760.1,2760.0,3.22713029]
[1739831210825,0.00543488,2760.1,2760.0,4.75244058]
[1739831211031,0.00543488,2760.1,2760.0,3.22713029]
[1739831212736,0.00543488,2760.1,2760.0,1.70182]
[1739831234757,0.00543488,2760.1,2760.0,3.22683471]
[1739831236558,0.00543488,2760.1,2760.0,2.10463471]
[1739831253072,0.57964,2760.0,2759.8,3.2078]
[1739831253279,2.20324,2759.9,2759.8,3.2078]
[1739831253676,5.59661471,2759.9,2759.7,2.918]
[1739831253973,0.57967,2759.8,2759.7,2.0474]
[1739831254176,0.57967,2759.8,2759.5,3.2078]
[1739831254177,0.57971,2759.6,2759.5,3.2078]
[1739831261883,0.57974,2759.5,2759.3,5.31256471]
[1739831262074,1.0751,2759.4,2759.3,5.31256471]
[1739831262275,2.20525,2759.4,2759.3,5.31256471]
[1739831262584,2.20525,2759.4,2759.3,3.2078]
[1739831264883,0.57979,2759.2,2759.1,0.57981]
[1739831267982,3.15051471,2759.4,2758.9,1.52501471]
[1739831268182,3.2078,2759.3,2758.8,0.57986]
[1739831268383,0.57984,2759.0,2758.8,0.88168465]
[1739831268680,0.57986,2758.9,2758.7,5.31269471]
[1739831268886,0.5468,2758.8,2758.7,5.31269471]
[1739831269082,0.5468,2758.8,2758.7,5.60109248]
[1739831269387,1.12669,2758.8,2758.4,4.8342]
[1739831269578,2.447,2758.7,2758.4,3.7663]
[1739831269779,2.447,2758.7,2758.4,5.29131471]
[1739831269985,3.02692,2758.7,2758.5,0.57994]
[1739831270480,3.02692,2758.7,2758.4,5.29131471]
[1739831270880,3.02692,2758.7,2758.5,0.57992]
[1739831271089,2.447,2758.7,2758.4,5.29131471]
[1739831271386,3.02691,2758.7,2758.5,0.57993]
[1739831271704,2.447,2758.7,2758.5,0.57993]
[1739831271883,0.57992,2758.6,2758.5,0.57993]
[1739831272185,3.02691,2758.7,2758.5,0.57993]
[1739831272485,3.0269,2758.7,2758.6,0.57992]
[1739831272683,3.0269,2758.7,2758.5,0.57992]
[1739831272984,0.57992,2758.6,2758.5,0.57992]
[1739831273185,2.447,2758.7,2758.5,0.57992]
[1739831273387,3.02691,2758.7,2758.5,0.57992]
[1739831274089,0.57993,2758.6,2758.4,2.66347471]
[1739831274290,0.57993,2758.6,2758.5,0.57994]
[1739831274589,0.57993,2758.6,2758.4,2.66346471]
[1739831274891,0.57993,2758.6,2758.5,0.57994]
[1739831276588,2.447,2758.7,2758.5,0.57992]
[1739831276589,3.02691,2758.7,2758.5,0.57992]
[1739831276789,3.0269,2758.7,2758.6,0.57992]
[1739831277089,2.447,2758.7,2758.6,0.57992]
[1739831277490,3.0269,2758.7,2758.6,0.57992]
[1739831277693,2.447,2758.7,2758.6,0.57992]
[1739831278088,3.0269,2758.7,2758.6,0.57992]
[1739831278696,2.447,2758.7,2758.4,2.08351471]
[1739831278994,3.02691,2758.7,2758.6,0.57992]
[1739831286794,0.57991,2758.7,2758.6,0.57992]
[1739831295101,0.57993,2758.6,2758.4,0.57994]
[1739831295300,0.5265,2758.6,2758.3,3.2078]
[1739831295696,0.57995,2758.5,2758.4,0.57995]
[1739831295989,0.5265,2758.6,2758.3,3.7494]
[1739831296191,0.57994,2758.5,2758.4,0.57996]
[1739831296397,0.5265,2758.6,2758.3,3.2078]
[1739831296591,0.58004,2758.1,2757.9,3.2078]
[1739831296802,2.446,2758.0,2757.4,3.2078]
[1739831297099,0.58009,2757.8,2757.4,4.73281471]
[1739831297295,1.52501471,2757.8,2757.4,3.2078]
[1739831297498,0.58011,2757.7,2757.4,3.2078]
[1739831297805,3.02614,2757.6,2757.4,3.2078]
[1739831298602,2.446,2757.6,2757.4,3.2078]
[1739831298792,3.02613,2757.6,2757.4,3.2078]
[1739831299399,0.58015,2757.5,2757.4,3.2078]
[1739831300200,3.97101471,2757.6,2757.4,3.2078]
[1739831300502,4.55115471,2757.6,2757.4,3.2078]
[1739831301199,0.58018,2757.4,2757.2,0.5416]
[1739831301994,0.58018,2757.4,2757.0,5.80011471]
[1739831302201,0.58018,2757.4,2757.0,6.38035471]
[1739831302500,0.58018,2757.4,2757.1,0.58023]
[1739831302699,0.58018,2757.4,2757.0,6.38035471]
[1739831303290,0.58018,2757.4,2757.1,0.58023]
[1739831304802,0.58018,2757.4,2757.0,5.80011471]
[1739831304990,0.58018,2757.4,2757.1,0.58022]
[1739831305197,0.58019,2757.3,2757.1,0.58022]
[1739831305396,2.446,2757.2,2757.1,0.58022]
[1739831305703,2.446,2757.2,2757.0,3.2078]
[1739831306002,0.58023,2757.1,2757.0,3.2078]
[1739831307000,1.13763,2757.1,2757.0,3.2078]
[1739831307302,3.2078,2757.0,2754.9,3.2078]
[1739831307502,3.2078,2756.0,2755.6,0.563]
[1739831307707,2.446,2755.9,2755.7,0.5751]
[1739831308406,2.446,2755.9,2755.3,0.87781404]
[1739831308601,2.446,2755.9,2755.6,0.5352]
[1739831308804,3.2078,2755.7,2755.4,0.5751]
[1739831309003,3.78834,2755.7,2755.4,0.5751]
[1739831309200,3.2078,2755.7,2755.4,0.5751]
[1739831309505,3.2078,2755.7,2755.1,0.5352]
[1739831309708,3.2078,2755.3,2755.1,0.5352]
[1739831309900,5.6538,2755.3,2755.1,0.5352]
[1739831310501,2.446,2755.3,2755.1,0.5352]
[1739831310701,3.2078,2755.6,2755.2,0.5599]
[1739831310901,2.446,2755.5,2755.3,0.5806]
[1739831311102,2.446,2755.5,2755.2,0.5599]
[1739831311904,2.446,2755.5,2755.2,1.14052]
[1739831312305,2.446,2755.5,2755.3,0.58061]
[1739831312716,2.446,2755.5,2755.2,0.5599]
[1739831313009,2.446,2755.5,2755.3,0.58061]
[1739831313211,2.446,2755.5,2755.3,0.5806]
[1739831313807,2.446,2755.5,2755.3,0.58061]
[1739831314113,2.446,2755.5,2754.9,3.7366]
[1739831314114,3.419389,2755.4,2754.0,3.419389]
[1739831314414,3.2078,2754.9,2754.4,0.5284]
[1739831314605,2.447,2754.8,2754.4,0.5284]
[1739831315111,2.446,2754.7,2754.1,3.7888]
[1739831315300,2.446,2754.7,2754.6,0.58076]
[1739831315501,0.00544484,2754.7,2754.5,3.419389]
[1739831315703,2.447,2755.3,2755.2,0.58063]
[1739831315908,5.6548,2755.6,2755.3,0.5806]
[1739831316110,5.6548,2755.6,2755.4,0.58057]
[1739831316307,5.6548,2755.6,2755.1,0.5377]
[1739831316512,5.6548,2755.6,2755.4,0.58058]
[1739831316715,5.66024484,2755.6,2755.3,0.58061]
[1739831317601,5.66024484,2755.6,2755.4,0.58058]
[1739831317805,5.66024484,2755.6,2755.1,0.54314484]
[1739831318611,0.58058,2755.5,2755.1,0.54314484]
[1739831318812,5.66024484,2755.6,2755.1,0.54314484]
[1739831319312,6.24079484,2755.6,2755.1,0.54314484]
[1739831319615,5.66024484,2755.6,2755.3,0.5806]
[1739831320019,5.66024484,2755.6,2755.4,0.58058]
[1739831320313,5.66024484,2755.6,2755.1,0.54314484]
[1739831320514,5.66024484,2755.6,2755.3,0.5806]
[1739831320709,5.66024484,2755.6,2755.1,0.54314484]
[1739831320910,5.66024484,2755.6,2755.4,0.58059]
[1739831321915,5.66024484,2755.6,2755.1,0.54314484]
[1739831322114,5.66024484,2755.6,2755.5,0.58057]
[1739831322510,5.66024484,2755.6,2755.1,0.54314484]
[1739831322716,5.66024484,2755.6,2755.5,0.58057]
[1739831323720,5.66024484,2755.6,2755.4,0.58057]
[1739831323921,5.66024484,2755.6,2755.5,0.5804]
[1739831324219,0.58058,2755.5,2755.1,0.58609484]
[1739831324417,0.58058,2755.5,2755.2,0.58063]
[1739831325119,5.66024484,2755.6,2755.1,0.00544484]
[1739831325420,0.54760668,2755.4,2755.2,0.58062]
[1739831326024,0.54760668,2755.4,2755.2,0.58063]
[1739831326819,0.54760668,2755.4,2755.3,0.58061]
[1739831327025,6.24080484,2755.6,2755.3,0.58061]
[1739831328118,5.66024484,2755.6,2755.1,0.00544484]
[1739831328316,0.58058,2755.5,2755.3,0.58061]
[1739831328723,1.12638,2755.5,2755.3,0.58061]
[1739831329825,1.12638,2755.5,2755.2,0.58062]
[1739831330027,1.12638,2755.5,2755.1,0.00544484]
[1739831330226,1.12638,2755.5,2755.3,0.5806]
[1739831331117,0.5458,2755.5,2755.3,0.5806]
[1739831331318,0.5458,2755.5,2755.1,0.00544484]
[1739831331518,0.5458,2755.5,2755.3,0.5806]
[1739831331925,1.12637,2755.5,2755.3,0.5806]
[1739831332420,4.33417,2755.5,2755.4,0.58059]
[1739831332928,3.7536,2755.5,2755.4,0.58059]
[1739831333119,4.3333,2755.5,2755.4,0.58059]
[1739831334631,2.447,2755.5,2755.4,0.58059]
[1739831334927,0.00544484,2755.6,2755.5,0.58057]
[1739831336126,2.54131,2756.3,2755.5,0.58057]
[1739831336127,23.3258,2756.4,2755.5,3.78837]
[1739831336318,2.447,2756.3,2756.2,0.58041]
[1739831338928,3.21324484,2756.5,2756.4,0.58038]
[1739831339636,0.00544484,2756.5,2756.4,0.58038]
[1739831364660,1.53506009,2756.5,2756.4,0.58038]
[1739831366557,0.00544484,2756.5,2756.4,0.58038]
[1739831381273,0.00544484,2756.5,2756.0,0.5538]
[1739831381572,0.58052,2755.8,2755.2,3.2078]
[1739831381776,7.58200356,2755.7,2755.1,2.40308471]
[1739831382074,7.57356356,2755.7,2755.2,0.58062]
[1739831382267,0.58055,2755.6,2755.2,0.58062]
[1739831382473,0.58055,2755.6,2755.2,0.58063]
[1739831382669,0.58056,2755.6,2755.3,0.58061]
[1739831383170,0.58063,2755.2,2755.1,0.00544484]
[1739831383376,2.444,2755.2,2754.2,1.6552]
[1739831383680,0.58072,2754.8,2754.2,1.6552]
[1739831383869,2.444,2754.7,2754.2,1.6552]
[1739831384175,2.444,2754.7,2754.3,0.58082]
[1739831384367,2.444,2754.7,2754.3,0.58081]
[1739831384573,2.44944484,2754.7,2754.4,0.5808]
[1739831384769,2.44944484,2754.7,2754.2,1.12214484]
[1739831384976,3.78862,2754.3,2754.2,0.00544484]
[1739831385169,9.65018356,2754.3,2754.2,0.00544484]
[1739831385371,21.56084524,2754.3,2752.5,3.2078]
[1739831385678,3.2078,2753.5,2752.8,3.2078]
[1739831386178,2.444,2753.4,2752.8,3.2078]
[1739831386378,2.444,2753.4,2752.8,3.78893]
[1739831386676,2.444,2753.4,2752.8,3.2078]
[1739831386871,2.444,2753.4,2752.9,0.5811]
[1739831388076,2.444,2753.4,2752.8,3.2078]
[1739831388283,3.2078,2752.9,2752.0,0.5813]
[1739831388472,2.445,2752.8,2752.0,0.5813]
[1739831388673,0.00544484,2752.7,2752.2,3.2078]
[1739831388868,0.00544484,2752.7,2752.2,3.78905]
[1739831389072,0.00544484,2752.7,2752.3,0.58124]
[1739831389481,0.00544484,2752.7,2752.2,3.2078]
[1739831389773,0.00544484,2752.7,2752.3,0.58124]
[1739831389970,0.00544484,2752.7,2752.2,3.2078]
[1739831390175,2.44944484,2752.7,2752.5,0.58119]
[1739831390676,2.44944484,2752.7,2752.6,0.58118]
[1739831391379,0.00544484,2752.7,2752.6,3.99874356]
[1739831391782,2.445,2753.9,2752.6,9.41756356]
[1739831391984,2.445,2753.9,2753.5,0.58097]
[1739831392181,2.445,2753.9,2753.1,3.41756356]
[1739831392382,2.445,2753.9,2753.5,0.58098]
[1739831392684,3.2078,2754.4,2753.6,3.2078]
[1739831392874,5.6528,2754.4,2754.0,0.58089]
[1739831393073,0.00544484,2754.3,2754.0,0.58089]
[1739831393278,6.62536356,2754.1,2753.6,3.78876]
[1739831393476,2.445,2754.0,2753.6,0.58097]
[1739831393672,2.445,2754.0,2753.4,0.00544484]
[1739831393874,2.445,2754.0,2753.7,0.58094]
[1739831394070,2.445,2754.0,2753.6,3.2078]
[1739831394674,2.445,2754.1,2753.6,3.2078]
[1739831395374,2.445,2754.1,2753.9,0.5809]
[1739831395982,2.445,2754.1,2753.6,3.2078]
[1739831395983,3.02587,2754.1,2753.6,3.2078]
[1739831396182,2.445,2754.1,2753.7,0.58094]
[1739831396485,2.445,2754.1,2753.6,3.78876]
[1739831396686,2.445,2754.1,2753.7,0.58095]
[1739831398182,2.445,2754.0,2753.7,0.58095]
[1739831399279,2.445,2754.0,2753.6,3.2078]
[1739831399482,2.445,2754.0,2753.5,0.58099]
[1739831399483,0.58092,2753.9,2753.5,0.58099]
[1739831399680,0.58092,2753.9,2753.4,0.58644484]
[1739831399982,0.58092,2753.9,2753.5,0.58099]
[1739831400191,2.445,2754.0,2753.4,0.00544484]
[1739831400688,3.02589,2754.0,2753.6,0.58096]
[1739831401185,3.02589,2754.0,2753.7,0.58095]
[1739831403091,2.445,2754.0,2753.8,0.58091]
[1739831403893,3.02589,2754.0,2753.8,0.58091]
[1739831404285,2.445,2754.0,2753.8,0.58091]
[1739831404693,0.445,2754.0,2753.6,3.2078]
[1739831404893,0.445,2754.0,2753.9,0.58091]
[1739831405490,0.00544484,2754.3,2753.6,3.2078]
[1739831405786,0.00544484,2754.3,2754.2,0.58084]
[1739831413089,2.445,2754.6,2754.5,0.58078]
[1739831415683,0.00544484,2754.8,2754.7,0.58074]
[1739831416492,0.00544484,2754.8,2754.4,0.571]
[1739831416691,0.00544484,2754.8,2754.7,0.58074]
[1739831418100,0.00544484,2754.8,2754.7,1.15534]
[1739831422702,0.00544484,2754.8,2754.7,4.36314]
[1739831432806,2.443,2755.4,2754.9,1.4517]
[1739831433210,3.2078,2755.6,2755.0,0.5327]
[1739831433400,5.6508,2755.6,2755.0,0.5327]
[1739831433706,5.6508,2755.6,2755.0,1.98436]
[1739831434009,5.65624484,2755.6,2755.5,0.58057]
[1739831435006,3.21324484,2755.6,2755.5,0.58057]
[1739831436004,4.08862,2755.8,2755.0,1.98980484]
[1739831436005,3.2078,2756.2,2755.4,6.62536356]
[1739831436207,0.5331,2756.1,2755.5,1.07]
[1739831436502,0.5623,2756.0,2755.9,0.58049]
[1739831438299,0.58055,2755.7,2755.1,3.2078]
[1739831438500,0.58054,2755.7,2755.1,3.2078]
[1739831438707,9.06836356,2755.8,2755.1,0.58064]
[1739831438708,0.58059,2755.4,2755.1,0.58064]
[1739831438906,1.1187,2755.3,2755.1,0.58064]
[1739831439302,1.1187,2755.3,2755.0,0.00544484]
[1739831439512,1.69932,2755.3,2755.0,0.58611484]
[1739831439714,1.69931,2755.3,2755.1,0.58065]
[1739831440009,1.1187,2755.3,2755.0,0.00544484]
[1739831440311,1.1187,2755.3,2755.1,0.58064]
[1739831440513,1.1187,2755.3,2755.1,0.58065]
[1739831441712,1.1187,2755.3,2755.2,0.58063]
[1739831443707,0.5669,2755.3,2755.2,0.58063]
[1739831443917,2.443,2755.4,2755.3,0.58061]
[1739831447014,1.1143,2755.7,2755.1,3.2078]
[1739831447216,1.1143,2755.7,2755.6,0.58055]
[1739831447415,3.5563,2755.7,2755.6,0.58055]
[1739831447610,3.5563,2755.7,2755.5,0.58057]
[1739831447815,3.5563,2755.7,2755.6,0.58055]
[1739831448912,0.5804,2755.7,2755.6,0.58055]
[1739831449219,5.6498,2755.8,2755.7,0.58053]
[1739831451717,0.5524,2756.0,2755.4,2.01968]
[1739831451718,2.9944,2756.0,2755.9,0.58049]
[1739831454816,2.442,2756.0,2755.9,0.58049]
[1739831455223,3.2078,2756.1,2755.7,3.71482799]
[1739831455426,0.00544484,2756.2,2756.1,0.58044]
[1739831459420,0.00544484,2756.2,2756.1,3.78824]
[1739831464528,3.2078,2757.3,2756.1,12.62536356]
[1739831464724,2.441,2757.2,2756.7,3.2078]
[1739831464928,4.327,2757.3,2756.8,0.5384]
[1739831465129,2.441,2757.2,2757.1,0.58022]
[1739831465527,4.327,2757.3,2756.8,0.5384]
[1739831465829,3.2078,2757.3,2757.2,0.58021]
[1739831467823,0.00544484,2757.4,2757.3,0.58019]
[1739831471635,0.00544484,2757.4,2757.3,3.78799]
[1739831472233,0.00544484,2757.4,2757.3,7.20555356]
[1739831472636,3.2078,2758.1,2757.3,6.62536356]
[1739831472937,3.2078,2758.1,2758.0,0.58004]
[1739831473636,1.1295,2758.2,2758.0,0.58004]
[1739831474528,3.02357671,2758.3,2758.0,0.58004]
[1739831474934,2.44359671,2758.3,2757.7,0.84380815]
[1739831475236,2.44359671,2758.3,2758.2,0.58]
[1739831475439,0.00359671,2758.3,2758.2,0.58]
[1739831477532,0.00359671,2758.3,2757.7,0.84380815]
[1739831477732,3.2078,2758.2,2757.7,0.549]
[1739831477931,0.58002,2758.1,2757.8,0.58008]
[1739831478535,0.5798,2758.0,2757.6,3.767]
[1739831478731,1.15985,2758.0,2757.6,4.34711]
[1739831479036,0.5798,2758.0,2757.6,3.767]
[1739831479232,0.5798,2758.0,2757.6,3.2078]
[1739831479434,0.58007,2757.9,2757.7,0.58011]
[1739831479629,0.5479,2757.8,2757.7,0.58011]
[1739831479828,2.9869,2757.8,2757.0,7.15596356]
[1739831480029,2.9869,2757.8,2757.1,3.2078]
[1739831480236,2.9869,2757.8,2756.7,3.41756356]
[1739831480237,3.2078,2757.3,2756.7,3.2078]
[1739831480737,3.78799,2757.3,2756.8,0.58028]
[1739831480939,0.58022,2757.2,2756.8,0.58028]
[1739831481140,1.12812,2757.2,2756.8,0.58028]
[1739831481435,0.58025,2757.0,2756.5,1.1327]
[1739831481637,3.01925,2757.0,2756.4,9.35830973]
[1739831481937,3.01925,2757.0,2756.5,0.58035]
[1739831482138,3.01925,2757.0,2756.4,8.77793973]
[1739831482139,3.01925,2757.0,2756.4,5.36037617]
[1739831482340,6.22705,2757.0,2756.4,5.36037617]
[1739831483232,6.22705,2757.0,2756.4,3.2078]
[1739831486435,6.22705,2757.0,2756.5,0.58035]
[1739831486748,6.22705,2757.0,2756.6,0.58033]
[1739831486935,6.22705,2757.0,2756.2,3.50326937]
[1739831487131,6.22705,2757.0,2756.5,0.58035]
[1739831487741,6.22705,2757.0,2756.6,0.58034]
[1739831488432,6.22705,2757.0,2756.2,3.50326937]
[1739831488836,6.22705,2757.0,2756.6,0.58034]
[1739831489837,6.22705,2757.0,2756.2,3.50326937]
[1739831490137,6.22705,2757.0,2756.6,0.58033]
[1739831490350,3.2078,2757.0,2756.4,3.41756356]
[1739831490638,3.2078,2757.0,2756.9,0.58572484]
[1739831490639,5.6468,2757.0,2756.9,0.58572484]
[1739831491532,3.2078,2757.3,2756.9,0.00544484]
[1739831491737,5.6468,2757.3,2757.2,0.58021]
[1739831493244,3.2078,2757.3,2757.2,0.58021]
[1739831494040,0.5788,2757.6,2756.9,0.00544484]
[1739831494343,0.5788,2757.6,2757.3,0.58018]
[1739831494542,1.15894,2757.6,2757.3,0.58018]
[1739831494843,0.5788,2757.6,2756.9,3.21324484]
[1739831495145,5.6468,2757.7,2757.0,1.45064]
[1739831495345,6.22692,2757.7,2757.4,0.58016]
[1739831495645,5.6468,2757.7,2757.0,1.45064]
[1739831495843,0.58004,2758.1,2757.8,0.58008]
[1739831496140,0.00359671,2758.3,2757.9,0.58006]
[1739831496643,0.58358671,2758.3,2757.6,1.6383]
[1739831496836,0.58358671,2758.3,2758.1,0.58001]
[1739831496837,0.00359671,2758.3,2758.1,0.58001]
[1739831497037,0.58358671,2758.3,2758.0,0.58003]
[1739831497438,0.00359671,2758.3,2758.1,0.58002]
[1739831498234,0.58,2758.2,2758.0,0.58004]
[1739831498446,0.00359671,2758.3,2758.0,0.58002]
[1739831498746,0.58358671,2758.3,2758.0,0.58002]
[1739831499140,0.00359671,2758.3,2757.8,3.2078]
[1739831499345,0.00359671,2758.3,2758.2,0.58]
[1739831500042,0.00359671,2758.3,2757.8,3.2078]
[1739831500248,0.00359671,2758.3,2758.2,0.58]
[1739831505251,0.58001,2758.2,2758.0,0.58003]
[1739831505555,0.58358671,2758.3,2758.1,0.58002]
[1739831505744,0.00359671,2758.3,2758.1,0.58002]
[1739831505950,0.00359671,2758.3,2758.2,0.58]
[1739831514662,0.00359671,2758.3,2757.8,3.50624163]
[1739831514863,0.00359671,2758.3,2758.2,0.58]
[1739831529981,0.00359671,2758.3,2758.2,5.07026356]
[1739831530288,0.00359671,2758.3,2758.2,5.59636356]
[1739831532984,0.00359671,2758.3,2758.2,8.03336356]
[1739831533988,3.2078,2758.8,2758.2,7.45336356]
[1739831534183,3.741,2759.1,2758.4,4.65768]
[1739831534387,3.741,2759.1,2759.0,0.57983]
[1739831536081,3.2078,2759.1,2759.0,0.57983]
[1739831540089,0.5635,2759.3,2758.8,4.5298084]
[1739831540289,0.5635,2759.3,2759.2,0.57979]
[1739831542393,3.2078,2759.4,2759.3,0.57977]
[1739831544291,0.5329,2759.6,2759.0,4.65739]
[1739831544500,0.5329,2759.6,2759.5,0.57973]
[1739831545496,3.7656,2759.8,2759.7,0.57969]
[1739831546296,0.5578,2759.8,2759.7,0.57969]
[1739831546614,0.5415,2759.9,2759.4,0.5285]
[1739831546615,0.5415,2759.9,2759.8,0.57967]
[1739831549195,0.5415,2759.9,2759.6,0.57971]
[1739831549494,0.57976,2759.4,2758.9,8.19560695]
[1739831549699,1.1485,2759.3,2759.2,0.57978]
[1739831550100,0.57973,2759.5,2759.2,0.57977]
[1739831550296,0.57975,2759.5,2759.2,0.57977]
[1739831550494,0.57976,2759.4,2759.1,0.5339]
[1739831550694,1.7277,2759.7,2759.2,0.57979]
[1739831550902,0.57975,2759.4,2759.2,0.57979]
[1739831551505,0.57975,2759.4,2759.2,0.57977]
[1739831552405,1.7277,2759.7,2759.0,1.6388]
[1739831552599,0.57981,2759.1,2759.0,1.0709]
[1739831552900,0.57983,2759.0,2758.8,0.00544484]
[1739831553100,3.78765,2758.9,2758.8,0.00544484]
[1739831553300,0.57994,2758.5,2758.1,1.11771]
[1739831553502,1.122,2758.4,2758.1,0.58001]
[1739831553707,1.70197,2758.4,2758.0,7.73759356]
[1739831554202,1.122,2758.4,2757.7,1.0731]
[1739831554506,0.58003,2758.1,2757.9,0.00544484]
[1739831554702,3.01503,2758.1,2757.9,0.00544484]
[1739831555703,3.2078,2758.3,2757.9,0.00544484]
[1739831555900,3.01502,2758.1,2757.9,0.00544484]
[1739831556200,2.435,2758.1,2757.9,0.00544484]
[1739831556599,3.01502,2758.1,2757.9,0.00544484]
[1739831557600,2.435,2758.1,2757.9,0.00544484]
[1739831559401,3.01502,2758.1,2757.9,0.00544484]
[1739831559608,2.435,2758.1,2757.9,0.00544484]
[1739831561008,3.01502,2758.1,2757.9,0.00544484]
[1739831561311,2.435,2758.1,2757.9,0.58549484]
[1739831562209,3.01503,2758.1,2757.9,0.00544484]
[1739831563509,3.01503,2758.1,2757.9,0.58550484]
[1739831565311,3.01502,2758.1,2758.0,0.58004]
[1739831565912,3.01502,2758.1,2757.9,0.58549484]
[1739831566213,2.435,2758.1,2758.0,0.58004]